[Event "*** SCC Grand Prix: Titled Tuesday Blitz"]
[Site "Chess.com"]
[Date "2020.10.06"]
[Round "4"]
[White "mishanick"]
[Black "vanea_03"]
[Result "0-1"]
[WhiteElo "2985"]
[BlackElo "2700"]
[TimeControl "180+1"]
[EndTime "10:40:04 PDT"]
[Termination "vanea_03 won by resignation"]

1. d4 {[%clk 0:03:00.9]} 1... d5 {[%clk 0:02:58.7]} 2. c4 {[%clk 0:03:01.3]}
2... dxc4 {[%clk 0:02:59.6]} 3. Nf3 {[%clk 0:03:01]} 3... a6 {[%clk 0:02:59.7]}
4. e3 {[%clk 0:03:01.5]} 4... Bg4 {[%clk 0:03:00.1]} 5. Bxc4 {[%clk 0:03:01.9]}
5... e6 {[%clk 0:03:00.9]} 6. O-O {[%clk 0:03:02.3]} 6... Nf6 {[%clk 0:03:01.1]}
7. h3 {[%clk 0:03:03]} 7... Bh5 {[%clk 0:03:01.4]} 8. Nc3 {[%clk 0:03:03.7]}
8... Nc6 {[%clk 0:03:01.5]} 9. Be2 {[%clk 0:03:01.4]} 9... Bd6 {[%clk
0:03:01.7]} 10. Nd2 {[%clk 0:03:00.7]} 10... Bxe2 {[%clk 0:03:01.3]} 11. Qxe2
{[%clk 0:03:01.6]} 11... O-O {[%clk 0:03:01.4]} 12. Nf3 {[%clk 0:02:53.4]} 12...
Qe8 {[%clk 0:02:51.1]} 13. e4 {[%clk 0:02:47.2]} 13... e5 {[%clk 0:02:47.5]} 14.
dxe5 {[%clk 0:02:42.3]} 14... Nxe5 {[%clk 0:02:47.4]} 15. Nd4 {[%clk 0:02:42.7]}
15... Ng6 {[%clk 0:02:22.2]} 16. Re1 {[%clk 0:02:01.8]} 16... Be5 {[%clk
0:01:56.5]} 17. Nf3 {[%clk 0:01:59.3]} 17... Rd8 {[%clk 0:01:33.3]} 18. Bg5
{[%clk 0:01:54.6]} 18... h6 {[%clk 0:01:30.6]} 19. Bd2 {[%clk 0:01:41.6]} 19...
Qe6 {[%clk 0:01:24.8]} 20. Rad1 {[%clk 0:01:39.5]} 20... Bf4 {[%clk 0:01:06.2]}
21. Bxf4 {[%clk 0:01:22.8]} 21... Nxf4 {[%clk 0:01:07.1]} 22. Qe3 {[%clk
0:01:23.1]} 22... N6h5 {[%clk 0:00:52.3]} 23. Kh2 {[%clk 0:01:20]} 23... c6
{[%clk 0:00:37.9]} 24. Nd4 {[%clk 0:01:14.9]} 24... Qe5 {[%clk 0:00:34]} 25. g3
{[%clk 0:01:14.1]} 25... Ne6 {[%clk 0:00:33]} 26. Nf5 {[%clk 0:01:09.6]} 26...
Nf6 {[%clk 0:00:24.5]} 27. f4 {[%clk 0:01:05]} 27... Qc7 {[%clk 0:00:18]} 28. e5
{[%clk 0:01:04.3]} 28... Nd7 {[%clk 0:00:17.9]} 29. Nd6 {[%clk 0:01:04.2]} 29...
Nec5 {[%clk 0:00:08.5]} 30. b4 {[%clk 0:01:02.5]} 30... Ne6 {[%clk 0:00:06.5]}
31. f5 {[%clk 0:01:01.4]} 31... Ng5 {[%clk 0:00:06.8]} 32. h4 {[%clk 0:01:01.6]}
32... Nh7 {[%clk 0:00:07.4]} 33. e6 {[%clk 0:01:01.8]} 33... fxe6 {[%clk
0:00:06.7]} 34. fxe6 {[%clk 0:01:02.7]} 34... Ndf6 {[%clk 0:00:05.3]} 35. e7
{[%clk 0:01:02.3]} 35... Ng4+ {[%clk 0:00:05.6]} 36. Kg1 {[%clk 0:00:48.7]}
36... Nxe3 {[%clk 0:00:06.5]} 37. exd8=Q {[%clk 0:00:28.5]} 37... Rxd8 {[%clk
0:00:06]} 38. Rxe3 {[%clk 0:00:29.3]} 38... Rxd6 {[%clk 0:00:06.3]} 39. Re8+
{[%clk 0:00:30.1]} 39... Kf7 {[%clk 0:00:06.4]} 40. Rde1 {[%clk 0:00:30.7]}
40... Rd7 {[%clk 0:00:04.3]} 41. R8e3 {[%clk 0:00:28.1]} 41... Nf6 {[%clk
0:00:04.4]} 42. Rf3 {[%clk 0:00:28.6]} 42... Kg8 {[%clk 0:00:04.7]} 43. Ne4
{[%clk 0:00:27.6]} 43... Nxe4 {[%clk 0:00:04]} 44. Rxe4 {[%clk 0:00:28.5]} 44...
Re7 {[%clk 0:00:04.6]} 45. Ref4 {[%clk 0:00:28.3]} 45... Qe5 {[%clk 0:00:04.6]}
46. a3 {[%clk 0:00:28.3]} 46... Qe1+ {[%clk 0:00:04.7]} 47. Kh2 {[%clk
0:00:28.9]} 47... Re2+ {[%clk 0:00:05.3]} 48. Kh3 {[%clk 0:00:29.7]} 48... Qh1+
{[%clk 0:00:05.6]} 49. Kg4 {[%clk 0:00:30.4]} 49... Re7 {[%clk 0:00:06.1]} 50.
Kh5 {[%clk 0:00:30.1]} 50... Kh7 {[%clk 0:00:06]} 51. Kg4 {[%clk 0:00:29.8]}
51... Qd1 {[%clk 0:00:06.3]} 52. Kh3 {[%clk 0:00:29.9]} 52... Re2 {[%clk
0:00:06.3]} 53. h5 {[%clk 0:00:28.6]} 53... Qh1+ {[%clk 0:00:05.5]} 54. Kg4
{[%clk 0:00:29.2]} 54... Rh2 {[%clk 0:00:05.8]} 55. Rf5 {[%clk 0:00:28.7]} 55...
Qd1 {[%clk 0:00:05.3]} 56. Rf8 {[%clk 0:00:21.7]} 56... Rf2 {[%clk 0:00:05.4]}
57. Rf7 {[%clk 0:00:20.9]} 57... Rxf3 {[%clk 0:00:05.6]} 58. Rxf3 {[%clk
0:00:21.8]} 58... Qd5 {[%clk 0:00:05.8]} 59. Rf5 {[%clk 0:00:21.4]} 59... Qe4+
{[%clk 0:00:05.6]} 60. Rf4 {[%clk 0:00:22]} 60... Qe6+ {[%clk 0:00:06]} 61. Kh4
{[%clk 0:00:22.1]} 61... b6 {[%clk 0:00:06.4]} 62. a4 {[%clk 0:00:22]} 62... c5
{[%clk 0:00:06.6]} 63. a5 {[%clk 0:00:22.3]} 63... bxa5 {[%clk 0:00:05.8]} 64.
bxc5 {[%clk 0:00:22.1]} 64... Qc6 {[%clk 0:00:06.2]} 65. Rf5 {[%clk 0:00:21.9]}
65... a4 {[%clk 0:00:06.5]} 66. g4 {[%clk 0:00:22.2]} 66... a3 {[%clk
0:00:06.5]} 67. g5 {[%clk 0:00:22.6]} 67... hxg5+ {[%clk 0:00:07.4]} 68. Kxg5
{[%clk 0:00:23.5]} 68... a2 {[%clk 0:00:07.9]} 69. Rf1 {[%clk 0:00:23.9]} 69...
Qxc5+ {[%clk 0:00:08.3]} 70. Kg4 {[%clk 0:00:24.8]} 70... Qc3 {[%clk 0:00:08.7]}
0-1

[Event "*** SCC Grand Prix: Titled Tuesday Blitz"]
[Site "Chess.com"]
[Date "2020.10.06"]
[Round "4"]
[White "Balla_Tamas"]
[Black "underthebridge1999"]
[Result "1-0"]
[WhiteElo "2438"]
[BlackElo "2255"]
[TimeControl "180+1"]
[EndTime "10:40:08 PDT"]
[Termination "Balla_Tamas won on time"]

1. e4 {[%clk 0:02:54.1]} 1... c5 {[%clk 0:02:59.1]} 2. d3 {[%clk 0:02:53.3]}
2... Nc6 {[%clk 0:02:58.6]} 3. g3 {[%clk 0:02:53.5]} 3... g6 {[%clk 0:02:57.9]}
4. Bg2 {[%clk 0:02:54.1]} 4... Bg7 {[%clk 0:02:58.4]} 5. f4 {[%clk 0:02:54.8]}
5... e6 {[%clk 0:02:58.6]} 6. Nf3 {[%clk 0:02:55.3]} 6... Nge7 {[%clk
0:02:59.1]} 7. O-O {[%clk 0:02:53.9]} 7... d5 {[%clk 0:02:58.8]} 8. c3 {[%clk
0:02:48.9]} 8... O-O {[%clk 0:02:57.8]} 9. Na3 {[%clk 0:02:41]} 9... Rb8 {[%clk
0:02:56.6]} 10. e5 {[%clk 0:02:32.6]} 10... b5 {[%clk 0:02:55.6]} 11. Be3 {[%clk
0:02:32.5]} 11... b4 {[%clk 0:02:49]} 12. cxb4 {[%clk 0:02:27.3]} 12... d4
{[%clk 0:02:48.2]} 13. Bf2 {[%clk 0:02:26.1]} 13... Nxb4 {[%clk 0:02:47.8]} 14.
Nc4 {[%clk 0:02:20.4]} 14... Ba6 {[%clk 0:02:47.2]} 15. a3 {[%clk 0:02:15.4]}
15... Nbd5 {[%clk 0:02:44.2]} 16. Rc1 {[%clk 0:02:10.2]} 16... Nf5 {[%clk
0:02:43.6]} 17. Qa4 {[%clk 0:01:47.1]} 17... Bxc4 {[%clk 0:02:42.4]} 18. Rxc4
{[%clk 0:01:47.1]} 18... Nb6 {[%clk 0:02:41.3]} 19. Qxa7 {[%clk 0:01:45.4]}
19... Nxc4 {[%clk 0:02:40.8]} 20. dxc4 {[%clk 0:01:45.7]} 20... Qc8 {[%clk
0:02:36.1]} 21. b4 {[%clk 0:01:38.6]} 21... cxb4 {[%clk 0:02:35.5]} 22. axb4
{[%clk 0:01:34.7]} 22... Qxc4 {[%clk 0:02:34.2]} 23. Nxd4 {[%clk 0:01:34.6]}
23... Nxd4 {[%clk 0:02:33.4]} 24. Bxd4 {[%clk 0:01:33.5]} 24... Rxb4 {[%clk
0:02:07.6]} 25. Bc5 {[%clk 0:01:31.4]} 25... Ra4 {[%clk 0:02:07]} 26. Qb6 {[%clk
0:01:13.8]} 26... Rc8 {[%clk 0:02:04.6]} 27. Bd6 {[%clk 0:01:06.9]} 27... Ra2
{[%clk 0:01:56.9]} 28. Qb7 {[%clk 0:01:03.4]} 28... Bf8 {[%clk 0:01:51.1]} 29.
Kh1 {[%clk 0:00:50.7]} 29... Qe2 {[%clk 0:01:46.2]} 30. Bxf8 {[%clk 0:00:36]}
30... Rxf8 {[%clk 0:01:44.3]} 31. h4 {[%clk 0:00:34.1]} 31... Rd2 {[%clk
0:01:42.3]} 32. Rg1 {[%clk 0:00:31.6]} 32... Rfd8 {[%clk 0:01:39.1]} 33. Kh2
{[%clk 0:00:31]} 33... Kg7 {[%clk 0:01:34.6]} 34. Qe7 {[%clk 0:00:29.7]} 34...
Qf2 {[%clk 0:01:31.6]} 35. Qf6+ {[%clk 0:00:29.2]} 35... Kg8 {[%clk 0:01:31.4]}
36. h5 {[%clk 0:00:29.2]} 36... R2d3 {[%clk 0:01:29.3]} 37. Qg5 {[%clk
0:00:26.7]} 37... h6 {[%clk 0:01:20.3]} 38. Qg4 {[%clk 0:00:24.4]} 38... Kg7
{[%clk 0:01:10.5]} 39. hxg6 {[%clk 0:00:24.4]} 39... fxg6 {[%clk 0:01:10]} 40.
Rf1 {[%clk 0:00:24.4]} 40... Qb6 {[%clk 0:01:05.8]} 41. Be4 {[%clk 0:00:23.4]}
41... Rd2+ {[%clk 0:01:04.8]} 42. Kh3 {[%clk 0:00:23.6]} 42... Qc7 {[%clk
0:00:08.7]} 43. Qxg6+ {[%clk 0:00:22.3]} 43... Kh8 {[%clk 0:00:07.6]} 44. Qxh6+
{[%clk 0:00:19.1]} 44... Kg8 {[%clk 0:00:07.2]} 45. Qxe6+ {[%clk 0:00:19.2]}
45... Kf8 {[%clk 0:00:06]} 46. Qh6+ {[%clk 0:00:17.7]} 46... Qg7 {[%clk
0:00:04.7]} 47. Qxg7+ {[%clk 0:00:17.6]} 47... Kxg7 {[%clk 0:00:05.6]} 48. Kg4
{[%clk 0:00:18]} 48... Rg8 {[%clk 0:00:05.2]} 49. f5 {[%clk 0:00:17.3]} 49...
Rd4 {[%clk 0:00:04.8]} 50. Rf4 {[%clk 0:00:16.7]} 50... Kf8+ {[%clk 0:00:05.7]}
51. Kf3 {[%clk 0:00:16.6]} 51... Ra4 {[%clk 0:00:05.5]} 52. g4 {[%clk
0:00:15.5]} 52... Ra3+ {[%clk 0:00:05.2]} 53. Kf2 {[%clk 0:00:15.7]} 53... Rh8
{[%clk 0:00:05.6]} 54. Rf3 {[%clk 0:00:14.4]} 54... Rh2+ {[%clk 0:00:05]} 55.
Kg3 {[%clk 0:00:14.7]} 55... Rha2 {[%clk 0:00:04.4]} 56. Rxa3 {[%clk 0:00:13.1]}
56... Rxa3+ {[%clk 0:00:05.3]} 57. Kf4 {[%clk 0:00:13.7]} 57... Kf7 {[%clk
0:00:05.5]} 58. Bd5+ {[%clk 0:00:12.5]} 58... Ke7 {[%clk 0:00:05.4]} 59. f6+
{[%clk 0:00:12.6]} 59... Kf8 {[%clk 0:00:04.9]} 60. g5 {[%clk 0:00:12.5]} 60...
Ra1 {[%clk 0:00:03.4]} 61. g6 {[%clk 0:00:12.3]} 61... Rf1+ {[%clk 0:00:02.6]}
62. Kg5 {[%clk 0:00:12.1]} 62... Rg1+ {[%clk 0:00:02.4]} 63. Kf5 {[%clk
0:00:12.4]} 1-0

[Event "*** SCC Grand Prix: Titled Tuesday Blitz"]
[Site "Chess.com"]
[Date "2020.10.06"]
[Round "4"]
[White "GregShahade"]
[Black "Onischuk_V"]
[Result "0-1"]
[WhiteElo "2648"]
[BlackElo "2867"]
[TimeControl "180+1"]
[EndTime "10:40:13 PDT"]
[Termination "Onischuk_V won by checkmate"]

1. e4 {[%clk 0:03:00.9]} 1... d6 {[%clk 0:02:59.3]} 2. d4 {[%clk 0:03:00.6]}
2... Nf6 {[%clk 0:02:59.8]} 3. Nc3 {[%clk 0:03:01.2]} 3... g6 {[%clk 0:03:00.3]}
4. Nf3 {[%clk 0:03:01.7]} 4... Bg7 {[%clk 0:03:00.8]} 5. Be2 {[%clk 0:03:01.8]}
5... O-O {[%clk 0:03:00.6]} 6. O-O {[%clk 0:03:02.5]} 6... c6 {[%clk 0:03:01]}
7. a4 {[%clk 0:03:02.1]} 7... a5 {[%clk 0:03:00.9]} 8. Be3 {[%clk 0:02:59]} 8...
Na6 {[%clk 0:03:01.4]} 9. Re1 {[%clk 0:02:54.6]} 9... Nb4 {[%clk 0:03:01.2]} 10.
h3 {[%clk 0:02:49.7]} 10... h6 {[%clk 0:02:55.2]} 11. Qd2 {[%clk 0:02:49.2]}
11... Kh7 {[%clk 0:02:55.2]} 12. Bf4 {[%clk 0:02:45.9]} 12... Qc7 {[%clk
0:02:52.1]} 13. Bf1 {[%clk 0:02:43]} 13... Nh5 {[%clk 0:02:41.6]} 14. Bh2 {[%clk
0:02:42]} 14... e5 {[%clk 0:02:41.5]} 15. dxe5 {[%clk 0:02:22.1]} 15... dxe5
{[%clk 0:02:40.5]} 16. Bc4 {[%clk 0:02:22.7]} 16... Rd8 {[%clk 0:02:33]} 17. Qe2
{[%clk 0:02:22.8]} 17... Qe7 {[%clk 0:01:55.3]} 18. Rad1 {[%clk 0:02:13.3]}
18... Be6 {[%clk 0:01:55]} 19. Nb1 {[%clk 0:02:12.4]} 19... Nf4 {[%clk
0:01:27.3]} 20. Bxf4 {[%clk 0:02:08.5]} 20... exf4 {[%clk 0:01:27.8]} 21. c3
{[%clk 0:02:08]} 21... Na6 {[%clk 0:01:27]} 22. Na3 {[%clk 0:02:07.5]} 22... Nc5
{[%clk 0:01:25.9]} 23. Qc2 {[%clk 0:01:49.1]} 23... Rxd1 {[%clk 0:01:11.2]} 24.
Rxd1 {[%clk 0:01:48.6]} 24... Bxc4 {[%clk 0:01:08.4]} 25. Nxc4 {[%clk
0:01:47.5]} 25... Nxe4 {[%clk 0:01:09.1]} 26. Nb6 {[%clk 0:01:38.3]} 26... Re8
{[%clk 0:01:00.2]} 27. Rd7 {[%clk 0:01:38.3]} 27... Qc5 {[%clk 0:00:51.8]} 28.
Rxb7 {[%clk 0:01:37]} 28... Nd6 {[%clk 0:00:49]} 29. Nd7 {[%clk 0:01:22.5]}
29... Qd5 {[%clk 0:00:36.6]} 30. Ra7 {[%clk 0:01:10.5]} 30... Nf5 {[%clk
0:00:22.3]} 31. Nb6 {[%clk 0:00:41.9]} 31... Qc5 {[%clk 0:00:22.1]} 32. Rb7
{[%clk 0:00:33.2]} 32... Nd6 {[%clk 0:00:20.6]} 33. Nd7 {[%clk 0:00:33.4]} 33...
Qc4 {[%clk 0:00:21]} 34. Rc7 {[%clk 0:00:24.9]} 34... Re2 {[%clk 0:00:20.2]} 35.
Qd1 {[%clk 0:00:24.5]} 35... Ne4 {[%clk 0:00:19.7]} 36. Nde5 {[%clk 0:00:23.2]}
36... Nxf2 {[%clk 0:00:18.2]} 37. Nxc4 {[%clk 0:00:20]} 37... Nxd1 {[%clk
0:00:18.3]} 38. Rxf7 {[%clk 0:00:20.8]} 38... Nxb2 {[%clk 0:00:17.7]} 39. Nxb2
{[%clk 0:00:19.5]} 39... Rxb2 {[%clk 0:00:17.6]} 40. Nd4 {[%clk 0:00:20.3]}
40... Kg8 {[%clk 0:00:16]} 41. Rc7 {[%clk 0:00:19.4]} 41... Bxd4+ {[%clk
0:00:13.6]} 42. cxd4 {[%clk 0:00:20.3]} 42... Rb4 {[%clk 0:00:14]} 43. Rxc6
{[%clk 0:00:20.5]} 43... Kg7 {[%clk 0:00:14.2]} 44. d5 {[%clk 0:00:19.5]} 44...
Rxa4 {[%clk 0:00:13.7]} 45. Ra6 {[%clk 0:00:17.9]} 45... Ra2 {[%clk 0:00:11.5]}
46. Ra7+ {[%clk 0:00:14.2]} 46... Kf6 {[%clk 0:00:11.1]} 47. Ra6+ {[%clk
0:00:14.5]} 47... Kf5 {[%clk 0:00:11.3]} 48. Kf1 {[%clk 0:00:13.4]} 48... a4
{[%clk 0:00:08.8]} 49. Kg1 {[%clk 0:00:10]} 49... h5 {[%clk 0:00:08.6]} 50. h4
{[%clk 0:00:09.7]} 50... a3 {[%clk 0:00:08.2]} 51. Kf1 {[%clk 0:00:07.2]} 51...
Ra1+ {[%clk 0:00:07.7]} 52. Kf2 {[%clk 0:00:07.3]} 52... a2 {[%clk 0:00:08]} 53.
d6 {[%clk 0:00:05.1]} 53... Ke6 {[%clk 0:00:07.8]} 54. Ra8 {[%clk 0:00:03.7]}
54... f3 {[%clk 0:00:07.7]} 55. gxf3 {[%clk 0:00:02.2]} 55... Rh1 {[%clk
0:00:07.8]} 56. Kg2 {[%clk 0:00:02.5]} 56... a1=Q {[%clk 0:00:07.6]} 57. Rxa1
{[%clk 0:00:03.3]} 57... Rxa1 {[%clk 0:00:06.7]} 58. Kg3 {[%clk 0:00:04.2]}
58... Kxd6 {[%clk 0:00:07]} 59. Kf4 {[%clk 0:00:05.1]} 59... Ra5 {[%clk
0:00:07.1]} 60. Kg3 {[%clk 0:00:05.3]} 60... Ke6 {[%clk 0:00:07.7]} 61. Kf2
{[%clk 0:00:06]} 61... Kf6 {[%clk 0:00:08.3]} 62. Kg2 {[%clk 0:00:06.9]} 62...
Ra4 {[%clk 0:00:08.7]} 63. Kf2 {[%clk 0:00:07.8]} 63... Kf5 {[%clk 0:00:09.1]}
64. Kg2 {[%clk 0:00:08.7]} 64... Rxh4 {[%clk 0:00:09.2]} 65. Kg3 {[%clk
0:00:09.6]} 65... Ra4 {[%clk 0:00:09.7]} 66. Kh3 {[%clk 0:00:10.5]} 66... g5
{[%clk 0:00:10.3]} 67. Kg3 {[%clk 0:00:11.3]} 67... h4+ {[%clk 0:00:10.5]} 68.
Kh3 {[%clk 0:00:11.5]} 68... Kf4 {[%clk 0:00:10.8]} 69. Kh2 {[%clk 0:00:11.4]}
69... Ra3 {[%clk 0:00:10.7]} 70. Kh3 {[%clk 0:00:12.3]} 70... Rxf3+ {[%clk
0:00:11]} 71. Kh2 {[%clk 0:00:13.2]} 71... g4 {[%clk 0:00:11.2]} 72. Kh1 {[%clk
0:00:13.8]} 72... h3 {[%clk 0:00:11.3]} 73. Kh2 {[%clk 0:00:14.4]} 73... Rf2+
{[%clk 0:00:10.9]} 74. Kh1 {[%clk 0:00:15.3]} 74... Kg3 {[%clk 0:00:11.3]} 75.
Kg1 {[%clk 0:00:15.8]} 75... Rf3 {[%clk 0:00:11.9]} 76. Kh1 {[%clk 0:00:16.7]}
76... Rf1# {[%clk 0:00:12.5]} 0-1

[Event "*** SCC Grand Prix: Titled Tuesday Blitz"]
[Site "Chess.com"]
[Date "2020.10.06"]
[Round "4"]
[White "AndreyNeves"]
[Black "awesomevishesh"]
[Result "1/2-1/2"]
[WhiteElo "2216"]
[BlackElo "2412"]
[TimeControl "180+1"]
[EndTime "10:40:15 PDT"]
[Termination "Game drawn - insufficient material"]

1. d4 {[%clk 0:03:00.9]} 1... Nf6 {[%clk 0:02:33.2]} 2. c4 {[%clk 0:02:59.4]}
2... g6 {[%clk 0:02:32.7]} 3. g3 {[%clk 0:02:58.3]} 3... Bg7 {[%clk 0:02:32.9]}
4. Bg2 {[%clk 0:02:58.2]} 4... O-O {[%clk 0:02:33.8]} 5. Nf3 {[%clk 0:02:58.1]}
5... d6 {[%clk 0:02:34.7]} 6. O-O {[%clk 0:02:57.3]} 6... c6 {[%clk 0:02:34.6]}
7. Nc3 {[%clk 0:02:56.7]} 7... Bf5 {[%clk 0:02:34.3]} 8. Nh4 {[%clk 0:02:54.8]}
8... Be6 {[%clk 0:02:33.7]} 9. b3 {[%clk 0:02:52.6]} 9... d5 {[%clk 0:02:26.5]}
10. c5 {[%clk 0:02:45.8]} 10... b6 {[%clk 0:01:56.7]} 11. Ba3 {[%clk 0:02:45]}
11... bxc5 {[%clk 0:01:55.4]} 12. Bxc5 {[%clk 0:02:44.1]} 12... Nbd7 {[%clk
0:01:45.1]} 13. Ba3 {[%clk 0:02:44]} 13... Qa5 {[%clk 0:01:43.4]} 14. Bb2 {[%clk
0:02:43.7]} 14... Rfd8 {[%clk 0:01:16.8]} 15. Na4 {[%clk 0:02:41.9]} 15... c5
{[%clk 0:01:14.6]} 16. dxc5 {[%clk 0:02:40.6]} 16... Nxc5 {[%clk 0:01:14.7]} 17.
Nxc5 {[%clk 0:02:39]} 17... Qxc5 {[%clk 0:01:14.7]} 18. Bd4 {[%clk 0:02:35.1]}
18... Qa5 {[%clk 0:01:13]} 19. Qe1 {[%clk 0:02:25.3]} 19... Qa3 {[%clk
0:01:09.1]} 20. Qc1 {[%clk 0:02:20.9]} 20... Qd6 {[%clk 0:01:02.9]} 21. Qb2
{[%clk 0:02:19.7]} 21... Bg4 {[%clk 0:00:59]} 22. h3 {[%clk 0:02:15.7]} 22...
Bd7 {[%clk 0:00:54.3]} 23. Nf3 {[%clk 0:02:13.6]} 23... Ne8 {[%clk 0:00:50.5]}
24. Rac1 {[%clk 0:02:05.4]} 24... a5 {[%clk 0:00:42.5]} 25. Rfd1 {[%clk
0:01:57.1]} 25... a4 {[%clk 0:00:31.7]} 26. b4 {[%clk 0:01:55.5]} 26... a3
{[%clk 0:00:31.1]} 27. Qd2 {[%clk 0:01:43.5]} 27... e5 {[%clk 0:00:30.2]} 28.
Bc5 {[%clk 0:01:30.7]} 28... Qf6 {[%clk 0:00:23.2]} 29. Qg5 {[%clk 0:01:19.1]}
29... Qxg5 {[%clk 0:00:15.5]} 30. Nxg5 {[%clk 0:01:18.5]} 30... h6 {[%clk
0:00:15.2]} 31. Nxf7 {[%clk 0:01:15.7]} 31... Kxf7 {[%clk 0:00:12.7]} 32. Bxd5+
{[%clk 0:01:15.4]} 32... Be6 {[%clk 0:00:12.8]} 33. Bxa8 {[%clk 0:01:13.2]}
33... Rxa8 {[%clk 0:00:13.7]} 34. Rd2 {[%clk 0:00:58.6]} 34... e4 {[%clk
0:00:12.8]} 35. b5 {[%clk 0:00:52]} 35... Bb2 {[%clk 0:00:12.3]} 36. Rb1 {[%clk
0:00:44.9]} 36... Bxa2 {[%clk 0:00:11.9]} 37. Rbxb2 {[%clk 0:00:45.2]} 37...
axb2 {[%clk 0:00:11.8]} 38. Rxb2 {[%clk 0:00:46.1]} 38... Bd5 {[%clk 0:00:11]}
39. b6 {[%clk 0:00:41.2]} 39... Rb8 {[%clk 0:00:05.8]} 40. Rd2 {[%clk
0:00:37.4]} 40... Ke6 {[%clk 0:00:04.5]} 41. Rb2 {[%clk 0:00:30.4]} 41... Nf6
{[%clk 0:00:04.2]} 42. Bd4 {[%clk 0:00:27.9]} 42... Nd7 {[%clk 0:00:03.9]} 43.
f4 {[%clk 0:00:19.5]} 43... exf3 {[%clk 0:00:03]} 44. exf3 {[%clk 0:00:19.3]}
44... Bxf3 {[%clk 0:00:03.1]} 45. Kf2 {[%clk 0:00:19.4]} 45... Bd5 {[%clk
0:00:03]} 46. Ke3 {[%clk 0:00:17.8]} 46... Kd6 {[%clk 0:00:02.9]} 47. g4 {[%clk
0:00:16.4]} 47... Re8+ {[%clk 0:00:03.1]} 48. Kd2 {[%clk 0:00:15.6]} 48... Nb8
{[%clk 0:00:03.4]} 49. Be3 {[%clk 0:00:14.6]} 49... Nc6 {[%clk 0:00:03.6]} 50.
Bxh6 {[%clk 0:00:13.4]} 50... Kd7 {[%clk 0:00:03.4]} 51. Bf4 {[%clk 0:00:13]}
51... Nd4 {[%clk 0:00:03.4]} 52. b7 {[%clk 0:00:11.8]} 52... Nb3+ {[%clk
0:00:03.4]} 53. Rxb3 {[%clk 0:00:10.3]} 53... Bxb3 {[%clk 0:00:03.3]} 54. b8=Q
{[%clk 0:00:10.6]} 54... Rxb8 {[%clk 0:00:02.7]} 55. Bxb8 {[%clk 0:00:11.5]}
55... Bd5 {[%clk 0:00:02.7]} 56. Ke3 {[%clk 0:00:10.9]} 56... Ke6 {[%clk
0:00:03]} 57. Kf4 {[%clk 0:00:09.8]} 57... Kf7 {[%clk 0:00:03.4]} 58. h4 {[%clk
0:00:09]} 58... Kg7 {[%clk 0:00:03.4]} 59. Be5+ {[%clk 0:00:07.9]} 59... Kh7
{[%clk 0:00:03.5]} 60. Kg5 {[%clk 0:00:07.8]} 60... Bf3 {[%clk 0:00:03.5]} 61.
h5 {[%clk 0:00:07.5]} 61... gxh5 {[%clk 0:00:03.5]} 62. gxh5 {[%clk 0:00:08.4]}
62... Bxh5 {[%clk 0:00:03.4]} 1/2-1/2